bitfinex/quotes_BTCUSD_20251117
["timestamp","ask_amount","ask_price","bid_price","bid_amount"]
[1763395601305,3.37877631,93654.0,93653.0,63.8341548]
[1763395601504,3.05577631,93654.0,93653.0,63.8341548]
[1763395601704,3.36199282,93654.0,93653.0,63.8341548]
[1763395601911,3.03899282,93654.0,93653.0,63.8341548]
[1763395602117,0.03899282,93654.0,93653.0,63.8341548]
[1763395602295,0.03899282,93654.0,93653.0,63.83359567]
[1763395602504,0.02811363,93654.0,93653.0,63.83359567]
[1763395602719,0.02154445,93654.0,93653.0,63.83359567]
[1763395602923,0.02007248,93654.0,93653.0,63.83359567]
[1763395603117,0.0097913,93654.0,93653.0,63.83359567]
[1763395603329,0.00697443,93654.0,93653.0,63.90848456]
[1763395603753,0.01029474,93656.0,93655.0,0.06046]
[1763395603959,0.00943437,93666.0,93653.0,63.80507371]
[1763395604401,0.00943437,93666.0,93654.0,0.09927]
[1763395604951,0.00943437,93666.0,93653.0,63.60507371]
[1763395605106,0.00943437,93656.0,93653.0,63.59114291]
[1763395605317,0.00943437,93654.0,93653.0,63.59114291]
[1763395605703,0.00943437,93654.0,93653.0,63.79408229]
[1763395605897,0.00943437,93663.0,93653.0,63.69041291]
[1763395606154,0.00943437,93666.0,93654.0,0.09927]
[1763395606356,0.00943437,93666.0,93655.0,0.02135497]
[1763395606532,0.00943437,93669.0,93655.0,0.02135497]
[1763395607128,0.00943437,93660.0,93653.0,63.59114291]
[1763395607334,0.00943437,93654.0,93653.0,63.59114291]
[1763395608216,0.0130263,93674.0,93653.0,63.59114291]
[1763395608377,0.00943437,93663.0,93653.0,63.59114291]
[1763395609021,0.00943437,93654.0,93653.0,63.59114291]
[1763395609945,0.01209041,93654.0,93653.0,63.59114291]
[1763395610361,0.01209041,93654.0,93653.0,63.59528376]
[1763395610603,0.01209041,93654.0,93653.0,63.58831817]
[1763395610751,0.01209041,93654.0,93653.0,63.57786954]
[1763395611551,0.01209041,93654.0,93653.0,63.37786954]
[1763395611958,3.01209041,93654.0,93653.0,63.37786954]
[1763395612244,3.33509041,93654.0,93653.0,63.37786954]
[1763395612446,3.33509041,93654.0,93653.0,63.36450464]
[1763395614044,0.33509041,93654.0,93653.0,63.36450464]
[1763395614257,0.35872677,93654.0,93653.0,63.36450464]
[1763395614467,0.35872677,93654.0,93653.0,63.27769388]
[1763395614699,0.35872677,93654.0,93653.0,63.21982004]
[1763395614842,3.37833851,93654.0,93653.0,63.21982004]
[1763395615058,3.37833851,93654.0,93653.0,63.10407075]
[1763395615547,3.45361546,93654.0,93653.0,63.10407075]
[1763395615745,3.46342097,93654.0,93653.0,63.10407075]
[1763395616420,3.38814402,93654.0,93653.0,63.10407075]
[1763395616661,3.42028559,93654.0,93653.0,63.10407075]
[1763395618954,3.42028559,93654.0,93653.0,62.90407075]
[1763395619738,3.46370433,93654.0,93653.0,62.90349602]
[1763395620764,3.55779223,93654.0,93653.0,62.89304385]
[1763395620972,3.5578702,93654.0,93653.0,62.55362388]
[1763395621378,3.46370433,93654.0,93653.0,62.35162388]
[1763395621681,3.46370433,93654.0,93653.0,62.3216353]
[1763395622204,3.45446445,93654.0,93653.0,61.8166353]
[1763395622444,3.45446445,93654.0,93653.0,61.80376813]
[1763395622445,3.07804571,93654.0,93653.0,61.80376813]
[1763395622655,3.08748008,93654.0,93653.0,61.80376813]
[1763395623198,0.08748008,93654.0,93653.0,61.80376813]
[1763395623618,0.06489899,93654.0,93653.0,61.80376813]
[1763395624467,0.07796709,93654.0,93653.0,61.80376813]
[1763395624666,0.06118768,93654.0,93653.0,61.80376813]
[1763395625138,0.06521207,93654.0,93653.0,61.80376813]
[1763395625362,3.38821207,93654.0,93653.0,61.80376813]
[1763395625569,3.41079316,93654.0,93653.0,61.80376813]
[1763395625776,3.41079316,93654.0,93653.0,61.80284816]
[1763395625980,0.08779316,93654.0,93653.0,61.80284816]
[1763395626186,0.06521207,93654.0,93653.0,61.80284816]
[1763395626424,0.06521207,93654.0,93653.0,61.60284816]
[1763395627086,0.08568747,93654.0,93653.0,61.60284816]
[1763395627320,0.08568747,93654.0,93653.0,61.70087816]
[1763395627321,0.04793287,93654.0,93653.0,61.70087816]
[1763395627542,0.01961174,93654.0,93653.0,61.60284816]
[1763395627744,0.02904611,93654.0,93653.0,61.60284816]
[1763395627970,0.01961174,93654.0,93653.0,61.70087816]
[1763395628607,0.02258109,93673.0,93654.0,0.04341874]
[1763395628811,0.0130263,93674.0,93672.0,0.06628]
[1763395629013,0.0130263,93674.0,93655.0,0.02135497]
[1763395629014,0.0130263,93674.0,93673.0,0.06628]
[1763395629404,0.0130263,93674.0,93673.0,0.16431]
[1763395629543,0.0130263,93674.0,93657.0,0.02135451]
[1763395629758,0.0130263,93674.0,93653.0,61.59870731]
[1763395629759,0.02374661,93673.0,93653.0,61.59870731]
[1763395629974,0.00943437,93654.0,93653.0,61.59870731]
[1763395630400,0.02832113,93661.0,93653.0,61.59870731]
[1763395630606,0.00943437,93661.0,93654.0,0.0213552]
[1763395630809,0.02832113,93664.0,93654.0,0.09803]
[1763395631010,0.02832113,93662.0,93653.0,61.59870731]
[1763395631218,0.0284271,93661.0,93653.0,61.59870731]
[1763395631452,0.00943437,93655.0,93653.0,61.59870731]
[1763395632302,0.02258109,93671.0,93653.0,61.59870731]
[1763395632303,0.02832113,93659.0,93654.0,0.16431]
[1763395632521,0.02832113,93663.0,93655.0,0.04341874]
[1763395632729,0.0377555,93669.0,93658.0,0.06628]
[1763395632938,0.00943437,93669.0,93658.0,0.06628]
[1763395633154,0.00943437,93667.0,93654.0,0.04341874]
[1763395633558,0.00943437,93667.0,93653.0,61.59870731]
[1763395633767,0.00943437,93654.0,93653.0,61.59870731]
[1763395635729,0.00010597,93666.0,93653.0,61.59870731]
[1763395635939,0.02832113,93682.0,93665.0,0.06628]
[1763395636159,0.00943437,93676.0,93665.0,0.07008236]
[1763395636365,0.00943437,93676.0,93653.0,61.59870731]
[1763395636366,0.00943437,93676.0,93666.0,0.02135246]
[1763395636598,0.00943437,93676.0,93655.0,0.04341874]
[1763395637014,0.02832113,93688.0,93657.0,0.04341874]
[1763395637205,0.02832113,93688.0,93659.0,0.04341874]
[1763395637399,0.02832113,93690.0,93660.0,0.02135383]
[1763395637645,0.07051222,93695.0,93673.0,0.06628]
[1763395637864,0.04793113,93695.0,93661.0,0.04341874]
[1763395638069,0.00943437,93675.0,93662.0,0.02135337]
[1763395638633,0.02258109,93693.0,93674.0,0.04341874]
[1763395638826,0.02832113,93696.0,93694.0,0.0459]
[1763395639045,0.01280213,93696.0,93694.0,0.0459]
[1763395639229,0.01303,93713.0,93694.0,0.0459]
[1763395639430,0.00943437,93703.0,93694.0,0.0459]
[1763395639717,0.00943437,93707.0,93695.0,0.02134585]
[1763395640160,0.01,93707.0,93695.0,0.02134585]
[1763395640565,0.01958721,93706.0,93695.0,0.02134585]
[1763395640787,0.01307104,93713.0,93686.0,0.0459]
[1763395640788,0.01958721,93705.0,93686.0,0.0459]
[1763395640996,0.01958721,93704.0,93686.0,0.0459]
[1763395641311,0.01958721,93704.0,93687.0,0.11520767]
[1763395641469,0.01958721,93703.0,93687.0,0.09386]
[1763395641672,0.01318016,93713.0,93674.0,0.00043924]
[1763395641673,0.01,93693.0,93674.0,0.00043924]
[1763395641881,0.01958721,93702.0,93674.0,0.00043924]
[1763395641882,0.01,93684.0,93674.0,0.00043924]
[1763395642177,0.01958721,93683.0,93675.0,0.09386]
[1763395642337,0.01958721,93682.0,93676.0,0.02135018]
[1763395642537,0.01318016,93713.0,93675.0,0.09386]
[1763395642743,0.02455501,93712.0,93681.0,0.0459]
[1763395643031,0.01,93687.0,93674.0,0.00043924]
[1763395643210,0.01956811,93686.0,93674.0,0.11190848]
[1763395643407,0.01,93687.0,93685.0,0.0459]
[1763395643556,0.01,93687.0,93674.0,0.11190848]
[1763395643557,0.0195496,93686.0,93674.0,0.10961626]
[1763395643765,0.0195496,93686.0,93675.0,0.01623685]
[1763395643968,0.0195496,93686.0,93674.0,0.00043924]
[1763395644191,0.01,93681.0,93674.0,0.00043924]
[1763395644389,0.0195496,93680.0,93674.0,0.00043924]
[1763395644636,0.0195496,93679.0,93674.0,0.00043924]
[1763395644838,0.0195496,93678.0,93674.0,0.00043924]
[1763395644990,0.0195496,93677.0,93674.0,0.00043924]
[1763395645189,0.0195496,93676.0,93675.0,0.09462]
[1763395645605,0.0195496,93676.0,93674.0,0.00043924]
[1763395645811,0.01318016,93713.0,93674.0,0.00043924]
[1763395645812,0.03038603,93675.0,93674.0,0.00043924]
[1763395646050,0.03387311,93675.0,93674.0,0.00043924]
[1763395646455,0.0195496,93675.0,93674.0,0.15604924]
[1763395646863,0.0195496,93675.0,93674.0,0.06142924]
[1763395647195,0.0295496,93675.0,93674.0,0.00043924]
[1763395647407,0.0295496,93675.0,93674.0,0.15959778]
[1763395647408,0.0195496,93675.0,93674.0,0.15959778]
[1763395647542,0.01,93697.0,93674.0,0.15959778]
[1763395647740,0.01,93697.0,93675.0,0.11597041]
[1763395647974,0.01,93697.0,93676.0,0.04341874]
[1763395648188,0.01,93697.0,93696.0,0.04655]
[1763395648388,0.01,93703.0,93696.0,0.04655]
[1763395648743,0.01750367,93713.0,93696.0,0.04655]
[1763395648951,0.02318016,93713.0,93697.0,0.1159654]
[1763395649803,0.02318016,93713.0,93681.0,0.08996874]
[1763395650006,0.02134552,93712.0,93681.0,0.08996874]
[1763395650489,0.01,93703.0,93681.0,0.08996874]
[1763395650702,0.01,93696.0,93681.0,0.08996874]
[1763395650898,0.01,93696.0,93681.0,0.04655]
[1763395651303,0.01,93690.0,93682.0,0.02134881]
[1763395651457,0.02134552,93695.0,93650.0,0.98335307]
[1763395651663,0.01,93676.0,93650.0,0.98335307]
[1763395651889,0.01,93676.0,93662.0,0.04341874]
[1763395652093,0.01,93680.0,93663.0,0.01982623]
[1763395652536,0.01,93680.0,93679.0,0.04655]
[1763395652716,0.01,93683.0,93679.0,0.04655]
[1763395653182,0.00999999,93690.0,93654.0,0.09462]
[1763395653425,0.04692,93675.0,93643.0,0.30462]
[1763395653599,0.44076552,93675.0,93643.0,0.30462]
[1763395653806,0.42376765,93675.0,93643.0,0.21]
[1763395654010,0.4247735,93675.0,93643.0,0.21]
[1763395654350,0.42466246,93675.0,93643.0,0.21]
[1763395654550,0.44723983,93675.0,93643.0,0.21]
[1763395655060,0.01,93654.0,93643.0,0.21]
[1763395655267,0.01,93654.0,93653.0,61.55068682]
[1763395655268,3.33344123,93654.0,93653.0,61.55068682]
[1763395655476,3.40627835,93654.0,93653.0,61.49279574]
[1763395655677,3.43842283,93654.0,93653.0,61.49279574]
[1763395656104,3.43931764,93654.0,93653.0,61.49279574]
[1763395656283,3.48273638,93654.0,93653.0,61.49279574]
[1763395656682,3.48273638,93654.0,93653.0,61.3930828]
[1763395656881,3.48273638,93654.0,93653.0,61.15841619]
[1763395657085,0.48273638,93654.0,93653.0,60.55241619]
[1763395657287,3.48273638,93654.0,93653.0,59.74441619]
[1763395657635,3.47262534,93654.0,93653.0,59.74441619]
[1763395657840,3.48262534,93654.0,93653.0,59.74441619]
[1763395658048,3.4392066,93654.0,93653.0,59.74441619]
[1763395658515,0.1162066,93654.0,93653.0,59.74441619]
[1763395658724,0.08406212,93654.0,93653.0,59.54441619]
[1763395658930,0.05035088,93654.0,93653.0,59.54441619]
[1763395659145,0.00810609,93654.0,93653.0,59.54441619]
[1763395659362,0.00999999,93670.0,93653.0,59.54855706]
[1763395659577,0.04087564,93669.0,93653.0,59.54454747]
[1763395659784,0.01953012,93668.0,93653.0,59.54454747]
[1763395659986,0.00999999,93660.0,93653.0,59.54454747]
[1763395660198,0.01953012,93659.0,93653.0,59.54454747]
[1763395660614,0.00910609,93657.0,93653.0,59.54454747]
[1763395660826,0.01953012,93656.0,93653.0,59.54454747]
[1763395661380,0.01953012,93656.0,93654.0,0.0213552]
[1763395661582,0.01953012,93655.0,93654.0,0.0213552]
[1763395662354,0.01953012,93655.0,93654.0,0.09462]
[1763395662612,0.01953012,93655.0,93653.0,59.54454747]
[1763395662817,0.01953012,93654.0,93653.0,59.54454747]
[1763395663269,0.01953012,93654.0,93653.0,59.63916747]
[1763395663444,0.01953012,93654.0,93653.0,59.54454747]
[1763395665056,0.02863621,93654.0,93653.0,59.54454747]
[1763395665396,0.02863621,93654.0,93653.0,59.54868834]
[1763395666059,0.02863621,93654.0,93653.0,59.34868834]
[1763395666267,0.01953012,93654.0,93653.0,59.44330834]
[1763395666506,0.02134552,93670.0,93653.0,59.44330834]
[1763395666714,0.00910609,93667.0,93653.0,59.43916747]
[1763395666838,0.01953388,93666.0,93653.0,59.43916747]
[1763395667196,0.01953388,93665.0,93654.0,0.1159752]
[1763395667397,0.01953388,93664.0,93654.0,0.1159752]
[1763395667616,0.01953388,93663.0,93654.0,0.1159752]
[1763395667839,0.01953388,93662.0,93654.0,0.0213552]
[1763395667997,0.01953388,93661.0,93653.0,59.34454747]
[1763395668194,0.01953388,93660.0,93653.0,59.34454747]
[1763395668409,0.00910609,93656.0,93653.0,59.34454747]
[1763395668587,0.01953388,93655.0,93653.0,59.34454747]
[1763395668795,0.02863997,93654.0,93653.0,59.34454747]
[1763395670811,0.01953388,93654.0,93653.0,59.43916747]
[1763395671431,0.01953388,93654.0,93653.0,59.34454747]
[1763395672079,0.02863997,93654.0,93653.0,59.34454747]
[1763395672486,0.02863997,93654.0,93653.0,59.34868834]
[1763395674198,0.01953388,93654.0,93653.0,59.34868834]
[1763395675218,0.02863997,93654.0,93653.0,59.34868834]
[1763395675437,0.02912997,93654.0,93653.0,59.34868834]
[1763395675629,0.07813997,93654.0,93653.0,59.34868834]
[1763395675882,0.07813997,93654.0,93653.0,59.33410972]
[1763395675883,3.42248549,93654.0,93653.0,59.33410972]
[1763395676083,0.42639674,93654.0,93653.0,59.33410972]
[1763395676283,0.40387541,93654.0,93653.0,59.33410972]
[1763395676493,0.40113997,93654.0,93653.0,59.33410972]
[1763395676908,0.40387541,93654.0,93653.0,59.33410972]
[1763395678391,0.40387541,93654.0,93653.0,59.13410972]
[1763395678844,0.35486541,93654.0,93653.0,59.13410972]
[1763395679047,0.40385541,93654.0,93653.0,59.13410972]
[1763395679497,0.42641015,93654.0,93653.0,59.13410972]
[1763395679692,0.37468471,93654.0,93653.0,59.13410972]
[1763395679895,0.37419471,93654.0,93653.0,59.13410972]
[1763395680307,0.34253388,93654.0,93653.0,59.13410972]
[1763395680519,0.40113997,93654.0,93653.0,59.13410972]
[1763395680726,0.42730091,93654.0,93653.0,59.13410972]
[1763395680932,3.42730091,93654.0,93653.0,59.13410972]
[1763395681149,3.47071965,93654.0,93653.0,59.13410972]
[1763395681558,3.45944741,93654.0,93653.0,59.13410972]
[1763395681769,0.4592931,93654.0,93653.0,59.13410972]
[1763395681978,3.50271184,93654.0,93653.0,59.13410972]
[1763395682405,3.5028811,93654.0,93653.0,59.13410972]
[1763395682615,3.80502403,93654.0,93653.0,59.13410972]
[1763395682822,3.75437202,93654.0,93653.0,59.07621918]
[1763395683452,3.77115545,93654.0,93653.0,59.07621918]
[1763395683668,3.77115545,93654.0,93653.0,58.98938518]
[1763395683878,3.52525545,93654.0,93653.0,58.84330177]
[1763395684729,3.52525545,93654.0,93653.0,53.34355804]
[1763395684931,3.52525545,93654.0,93653.0,52.11060418]
[1763395685172,3.52525545,93654.0,93653.0,52.0959209]
[1763395685375,3.52525545,93654.0,93653.0,52.07018188]
[1763395685580,3.52229849,93654.0,93653.0,52.07006532]
[1763395685799,3.52229849,93654.0,93653.0,52.06710836]
[1763395686002,3.52212923,93654.0,93653.0,51.86710836]
[1763395686217,3.47871049,93654.0,93653.0,51.86710836]
[1763395686462,3.15011957,93654.0,93653.0,51.86710836]
[1763395686911,0.11797307,93654.0,93653.0,51.86710836]
[1763395687118,0.10118964,93654.0,93653.0,51.86710836]
[1763395687328,0.10120859,93654.0,93653.0,51.86710836]
[1763395687539,0.05170859,93654.0,93653.0,51.86710836]
[1763395687748,0.02914892,93654.0,93653.0,51.86710836]
[1763395687970,0.02865892,93654.0,93653.0,51.86710836]
[1763395688631,0.07815892,93654.0,93653.0,51.86710836]
[1763395688823,0.10071859,93654.0,93653.0,51.86710836]
[1763395688962,0.07815892,93654.0,93653.0,51.86710836]
[1763395689621,0.09950444,93654.0,93653.0,51.86710836]
[1763395689824,0.12206411,93654.0,93653.0,51.86710836]
[1763395690026,0.37421859,93654.0,93653.0,51.86710836]
[1763395690457,0.40164892,93654.0,93653.0,51.86710836]
[1763395690673,0.4241744,93654.0,93653.0,51.86710836]
[1763395691076,0.02865892,93654.0,93653.0,51.86710836]
[1763395692041,0.01955283,93654.0,93653.0,51.86710836]
[1763395692215,0.01955283,93654.0,93653.0,51.96099836]
[1763395694564,0.05309666,93689.0,93653.0,51.96099836]
[1763395694772,0.00910609,93668.0,93653.0,51.86296749]
[1763395694975,0.06978689,93688.0,93653.0,51.86296749]
[1763395695177,0.02891609,93654.0,93653.0,51.86296749]
[1763395695404,0.00910609,93654.0,93653.0,51.86296749]
[1763395695617,0.00910609,93660.0,93653.0,51.95685749]
[1763395695836,0.00910609,93673.0,93654.0,0.09389]
[1763395697006,0.06627479,93689.0,93653.0,51.86296749]
[1763395697007,0.00910609,93664.0,93653.0,51.86296749]
[1763395697226,0.00910609,93658.0,93653.0,51.86296749]
[1763395697433,0.00910609,93664.0,93653.0,51.86296749]
[1763395697810,0.00910609,93655.0,93653.0,51.86296749]
[1763395698436,0.00910609,93655.0,93653.0,51.66296749]
[1763395698644,0.01981,93665.0,93653.0,51.66296749]
[1763395698645,0.05860609,93654.0,93653.0,51.66296749]
[1763395698820,0.05883032,93654.0,93653.0,51.66296749]
[1763395699022,0.05860609,93654.0,93653.0,51.66296749]
[1763395699229,0.05860609,93654.0,93653.0,51.66025905]
[1763395699837,3.38160609,93654.0,93653.0,51.66025905]
[1763395700249,0.38183032,93654.0,93653.0,51.66025905]
[1763395700452,0.381914,93654.0,93653.0,51.66025905]
[1763395700664,0.38168977,93654.0,93653.0,51.66439992]
[1763395700883,0.33267977,93654.0,93653.0,51.66439992]
[1763395701084,0.38217977,93654.0,93653.0,51.66439992]
[1763395701406,0.33210609,93654.0,93653.0,51.66439992]
[1763395701652,0.00910609,93654.0,93653.0,51.7680693]
[1763395701847,0.00910609,93655.0,93653.0,51.66439992]
[1763395702075,0.00959609,93654.0,93653.0,51.66025905]
[1763395702466,0.00910609,93654.0,93653.0,51.66025905]
[1763395704737,0.00910609,93657.0,93653.0,51.66025905]
[1763395704934,0.00910609,93657.0,93654.0,0.0213552]
[1763395705326,0.01,93657.0,93654.0,0.0213552]
[1763395705523,0.01,93657.0,93653.0,51.66025905]
[1763395705524,0.17482183,93673.0,93653.0,51.66025905]
[1763395705738,0.00022986,93672.0,93653.0,51.66025905]
[1763395705955,0.04796267,93674.0,93653.0,51.66025905]
[1763395706155,0.01981,93674.0,93654.0,0.0213552]
[1763395706407,0.01,93660.0,93654.0,0.0213552]
[1763395706641,0.01957381,93659.0,93654.0,0.0213552]
[1763395706842,0.01,93654.0,93653.0,51.66025905]
[1763395707150,0.01957381,93654.0,93653.0,51.46025905]
[1763395707338,0.01981,93674.0,93654.0,0.00411266]
[1763395707562,0.02006421,93673.0,93653.0,51.46025905]
[1763395707747,0.01,93654.0,93653.0,51.46025905]
[1763395707968,0.01049,93654.0,93653.0,51.46025905]
[1763395708175,0.03006421,93654.0,93653.0,51.46025905]
[1763395708556,0.02957421,93654.0,93653.0,51.46025905]
[1763395708950,0.03006421,93654.0,93653.0,51.46025905]
[1763395709163,0.03029407,93654.0,93653.0,51.46025905]
[1763395709326,0.03006421,93654.0,93653.0,51.46025905]
[1763395709780,0.02957421,93654.0,93653.0,51.46025905]
[1763395710123,0.03006421,93654.0,93653.0,51.46025905]
[1763395710726,0.03029451,93654.0,93653.0,51.46025905]
[1763395710936,0.03006421,93654.0,93653.0,51.46025905]
[1763395711762,0.02957421,93654.0,93653.0,51.46025905]
[1763395712620,0.01957421,93654.0,93653.0,51.46025905]
[1763395713717,0.02957421,93654.0,93653.0,51.46025905]
[1763395713919,0.01957421,93654.0,93653.0,51.46025905]
[1763395714118,0.01957421,93654.0,93653.0,51.46439992]
[1763395714291,0.02957421,93654.0,93653.0,51.46439992]
[1763395714691,0.03006421,93654.0,93653.0,51.46439992]
[1763395714891,0.02006421,93654.0,93653.0,51.46439992]
[1763395715332,0.01957421,93654.0,93653.0,51.46439992]
[1763395717066,0.04772688,93654.0,93653.0,51.46439992]
[1763395717351,0.323,93665.0,93653.0,51.46439992]
[1763395717352,3.01,93681.0,93680.0,0.59446515]
[1763395717803,0.01022582,93681.0,93680.0,0.59446515]
[1763395717920,3.01,93681.0,93680.0,0.59446515]
[1763395718127,0.01,93681.0,93680.0,0.59446515]
[1763395718365,3.01022582,93681.0,93680.0,0.59446515]
[1763395718541,3.01022582,93681.0,93680.0,0.5365931]
[1763395719208,3.33322582,93681.0,93680.0,0.33616362]
[1763395719337,3.37664456,93681.0,93680.0,0.33606293]
[1763395720855,3.37641874,93681.0,93680.0,0.33606293]
[1763395721060,3.40855515,93681.0,93680.0,0.33606293]
[1763395721471,3.42533175,93681.0,93680.0,0.33606293]
[1763395721673,3.42533175,93681.0,93680.0,0.13139067]
[1763395721890,3.42556076,93681.0,93680.0,0.04456863]
[1763395722504,3.43538362,93681.0,93680.0,0.03411754]
[1763395722717,3.43538362,93681.0,93680.0,0.03749689]
[1763395723361,3.43538362,93681.0,93680.0,0.01830372]
[1763395723546,3.43515461,93681.0,93680.0,0.01830372]
[1763395723743,3.43515461,93681.0,93680.0,1e-08]
[1763395724148,0.01,93654.0,93653.0,51.46025905]
[1763395724354,0.34282108,93654.0,93653.0,51.46025905]
[1763395724767,0.37495611,93654.0,93653.0,51.46025905]
[1763395725518,0.00982108,93654.0,93653.0,51.46025905]
[1763395725675,0.01982108,93654.0,93653.0,51.46025905]
[1763395726583,0.01982108,93654.0,93653.0,51.26025905]
[1763395727121,0.0190358,93654.0,93653.0,51.26025905]
[1763395729083,0.03868338,93654.0,93653.0,51.26025905]
[1763395729293,0.02868338,93654.0,93653.0,51.35395905]
[1763395729428,0.03868338,93654.0,93653.0,51.35395905]
[1763395729630,0.02868338,93654.0,93653.0,51.35395905]
[1763395729829,0.02868338,93654.0,93653.0,51.3547211]
[1763395730273,0.02868338,93654.0,93653.0,51.2610211]
[1763395730274,0.02868601,93654.0,93653.0,51.2610211]
[1763395730879,0.03868601,93654.0,93653.0,51.2610211]
[1763395731533,0.03793879,93654.0,93653.0,51.2610211]
[1763395734069,0.03793879,93654.0,93653.0,51.0610211]
[1763395734660,0.02793879,93654.0,93653.0,51.0610211]
[1763395736280,0.03793879,93654.0,93653.0,51.0610211]
[1763395737972,3.36122093,93654.0,93653.0,51.0610211]
[1763395738169,3.42727445,93654.0,93653.0,51.0505697]
[1763395738373,3.45941802,93654.0,93653.0,51.0505697]
[1763395738567,3.45913588,93654.0,93653.0,51.01224845]
[1763395738964,3.45913588,93654.0,93653.0,50.86753548]
[1763395739366,3.45913588,93654.0,93653.0,50.7145148]
[1763395740967,3.4508473,93654.0,93653.0,50.56976424]
[1763395741193,3.54514514,93654.0,93653.0,50.56976424]
[1763395741498,3.4608473,93654.0,93653.0,50.25084218]
[1763395741753,3.4508473,93654.0,93653.0,50.25084218]
[1763395742191,3.4508473,93654.0,93653.0,50.23612925]
[1763395742412,3.4508473,93654.0,93653.0,50.21265759]
[1763395742850,3.4608473,93654.0,93653.0,50.21265759]
[1763395743542,3.47763265,93654.0,93653.0,50.21265759]
[1763395743720,3.47063435,93654.0,93653.0,50.21265759]
[1763395743861,3.47063435,93654.0,93653.0,48.82856205]
[1763395744061,3.47063435,93654.0,93653.0,47.83259614]
[1763395744311,3.47063435,93654.0,93653.0,46.54686565]
[1763395744484,3.47063435,93654.0,93653.0,44.71865348]
[1763395744654,3.47063435,93654.0,93653.0,43.33295849]
[1763395744858,3.47063435,93654.0,93653.0,41.92807033]
[1763395745083,3.47063435,93654.0,93653.0,40.54237534]
[1763395745292,3.14763435,93654.0,93653.0,40.54237534]
[1763395745493,3.10421561,93654.0,93653.0,40.54237534]
[1763395745708,3.10421561,93654.0,93653.0,40.53562728]
[1763395745928,3.14763435,93654.0,93653.0,40.53562728]
[1763395746244,3.47063435,93654.0,93653.0,40.53562728]
[1763395746476,3.4439993,93654.0,93653.0,40.53562728]
[1763395746706,3.1109993,93654.0,93653.0,40.53562728]
[1763395747391,3.4339993,93654.0,93653.0,40.53562728]
[1763395748036,3.47741804,93654.0,93653.0,40.53562728]
[1763395748252,3.51496621,93654.0,93653.0,40.53562728]
[1763395748471,3.47741804,93654.0,93653.0,40.53562728]
[1763395748695,3.47741804,93654.0,93653.0,40.5251739]
[1763395750622,3.47741804,93654.0,93653.0,40.51123275]
[1763395751810,3.47741804,93654.0,93653.0,40.27987161]
[1763395752754,3.47741804,93654.0,93653.0,40.17253781]
[1763395752985,3.47741804,93654.0,93653.0,31.77486485]
[1763395753185,2.52771002,93654.0,93653.0,31.74621839]
[1763395753302,1.01321002,93654.0,93653.0,30.23171839]
[1763395753504,0.47771002,93654.0,93653.0,29.68488483]
[1763395753814,1.01308022,93654.0,93653.0,29.68488483]
[1763395754015,1.06928208,93654.0,93653.0,29.48655528]
[1763395754241,3.53918208,93654.0,93653.0,29.47191797]
[1763395754441,3.48298022,93654.0,93653.0,29.47191797]
[1763395754644,3.48298022,93654.0,93653.0,29.34745347]
[1763395755046,3.48298022,93654.0,93653.0,29.24745347]
[1763395755258,3.11656148,93654.0,93653.0,29.24745347]
[1763395756015,3.10656148,93654.0,93653.0,29.24745347]
[1763395756289,0.11656148,93654.0,93653.0,29.24745347]
[1763395756711,0.1109993,93654.0,93653.0,29.24745347]
[1763395756885,0.08421561,93654.0,93653.0,29.24745347]
[1763395757093,0.07158083,93654.0,93653.0,29.24745347]
[1763395757295,0.05645415,93654.0,93653.0,29.24745347]
[1763395757635,0.05239027,93654.0,93653.0,29.24745347]
[1763395757843,0.01978705,93654.0,93653.0,29.23351923]
[1763395758258,0.01978705,93654.0,93653.0,29.230646]
[1763395758259,0.00978705,93654.0,93653.0,29.230646]
[1763395758817,0.00974868,93654.0,93653.0,29.230646]
[1763395759624,0.00974868,93654.0,93653.0,29.43163538]
[1763395759835,0.00974868,93654.0,93653.0,29.327966]
[1763395760046,0.00974868,93654.0,93653.0,29.37138474]
[1763395761002,0.00974868,93654.0,93653.0,29.327966]
[1763395761411,0.02247004,93696.0,93653.0,29.327966]
[1763395761412,0.03747279,93694.0,93653.0,29.327966]
[1763395761540,0.01,93673.0,93654.0,0.20098938]
[1763395761755,0.01,93673.0,93653.0,29.22988395]
[1763395761756,0.01,93654.0,93653.0,29.22988395]
[1763395761961,3.01,93654.0,93653.0,29.20657234]
[1763395762363,3.01,93654.0,93653.0,29.19370847]
[1763395762364,3.05341874,93654.0,93653.0,29.19370847]
[1763395762582,3.05341874,93654.0,93653.0,29.13552539]
[1763395762807,3.05341874,93654.0,93653.0,29.02427805]
[1763395762808,3.08135617,93654.0,93653.0,29.02427805]
[1763395763032,3.08135617,93654.0,93653.0,29.00685338]
[1763395763257,3.1562691,93654.0,93653.0,29.00685338]
[1763395763645,3.03234595,93654.0,93653.0,29.00685338]
[1763395763888,3.08854639,93654.0,93653.0,29.00685338]
[1763395764105,3.03234595,93654.0,93653.0,29.00685338]
[1763395764360,3.07576469,93654.0,93653.0,29.00685338]
[1763395765053,0.07576469,93654.0,93653.0,29.00685338]
[1763395765284,3.08135593,93654.0,93653.0,29.00685338]
[1763395766775,3.37641874,93654.0,93653.0,29.00685338]
[1763395766980,0.37641874,93654.0,93653.0,29.00685338]
[1763395767188,3.41553169,93654.0,93653.0,29.00685338]
[1763395767547,3.41553169,93654.0,93653.0,29.0076154]
[1763395767756,3.38757284,93654.0,93653.0,29.0076154]
[1763395768183,3.38757284,93654.0,93653.0,28.86880199]
[1763395768599,3.38757284,93654.0,93653.0,28.86183195]
[1763395769587,3.38757284,93654.0,93653.0,28.84718325]
[1763395769830,3.22261551,93654.0,93653.0,28.7488182]
[1763395770166,3.22261551,93654.0,93653.0,28.00512194]
[1763395770345,3.26476755,93654.0,93653.0,28.00512194]
[1763395770557,3.2815527,93654.0,93653.0,28.00512194]
[1763395771569,3.07963111,93654.0,93653.0,28.00512194]
[1763395771803,3.08403919,93654.0,93653.0,28.00512194]
[1763395772025,0.04632497,93654.0,93653.0,27.98180125]
[1763395772247,0.02953982,93654.0,93653.0,27.98180125]
[1763395772475,3.02953982,93654.0,93653.0,27.98180125]
[1763395772712,3.03512989,93654.0,93653.0,27.98180125]
[1763395772936,3.03512989,93654.0,93653.0,27.96437752]
[1763395773184,2.88163165,93654.0,93653.0,27.96437752]
[1763395773403,0.04787642,93654.0,93653.0,27.96437752]
[1763395773606,3.02536193,93654.0,93653.0,27.96437752]
[1763395773804,3.36965825,93654.0,93653.0,27.96437752]
[1763395775211,3.41307699,93654.0,93653.0,27.96437752]
[1763395775834,3.4298613,93654.0,93653.0,27.96437752]
[1763395777827,3.4298613,93654.0,93653.0,27.90647398]
[1763395778182,3.4298613,93654.0,93653.0,27.69627398]
[1763395778376,3.4298613,93654.0,93653.0,27.44384998]
[1763395778580,0.4298613,93654.0,93653.0,27.44384998]
[1763395778786,3.4298613,93654.0,93653.0,27.44384998]
[1763395778989,3.4298613,93654.0,93653.0,27.42524998]
[1763395779963,3.4298613,93654.0,93653.0,27.38354998]